Workbook

Sheet 변경(8차 승인 반영)
A1: 다산 진건지구 실수요자 점포겸용 단독주택용지 공급대상 필지(63필지)
A2: 구분 | B2: 도면 번호 | C2: 가구 번호 | D2: 획지 | E2: 공급면적 (㎡) | F2: 공급예정금액(원) | I2: 입찰보증금(원) | L2: 용적률 (%) | M2: 건폐율 (%) | N2: 용도지역 | O2: 최고층 | P2: 가구수 | Q2: 토지사용가능시기
F3: 주거(확정) | G3: 비주거(입찰) | H3: 공급예정금액 합계 | I3: 주거부분보증금(확정) | J3: 비주거(이상) | K3: 입찰보증금(이상)
A4: 1 | B4: F-1 | C4: ① | D4: -1 | E4: 273.1 | F4: 275,284,800 | G4: 367,046,400 | H4: 642,331,200 | I4: =F4*0.05 -> 13,764,240 | J4: 입찰금액의 5% 이상 | K4: =H4*0.05 -> 32,116,560 | L4: 180 | M4: 60 | N4: 제1종 일반주거지역 | O4: 4층 (필로티구조포함) | P4: 5가구 이하 | Q4: 잔금완납이후 즉시
A5: 2 | D5: -2 | E5: 269.9 | F5: 249,387,600 | G5: 332,516,800 | H5: 581,904,400 | I5: =F5*0.05 -> 12,469,380 | K5: =H5*0.05 -> 29,095,220
A6: 3 | D6: -3 | E6: 270.0 | F6: 249,480,000 | G6: 332,640,000 | H6: 582,120,000 | I6: 12,474,000 | K6: 29,106,000
A7: 4 | D7: -4 | E7: 270.0 | F7: 249,480,000 | G7: 332,640,000 | H7: 582,120,000 | I7: 12,474,000 | K7: 29,106,000
A8: 5 | D8: -5 | E8: 270.1 | F8: 249,572,400 | G8: 332,763,200 | H8: 582,335,600 | I8: 12,478,620 | K8: 29,116,780
A9: 6 | D9: -6 | E9: 270.0 | F9: 249,480,000 | G9: 332,640,000 | H9: 582,120,000 | I9: 12,474,000 | K9: 29,106,000
A10: 7 | D10: -7 | E10: 273.2 | F10: 270,468,000 | G10: 360,624,000 | H10: 631,092,000 | I10: 13,523,400 | K10: 31,554,600
A11: 8 | D11: -9 | E11: 269.8 | F11: 249,295,200 | G11: 332,393,600 | H11: 581,688,800 | I11: 12,464,760 | K11: 29,084,440
A12: 9 | D12: -10 | E12: 270.0 | F12: 249,480,000 | G12: 332,640,000 | H12: 582,120,000 | I12: 12,474,000 | K12: 29,106,000
A13: 10 | D13: -11 | E13: 269.9 | F13: 249,387,600 | G13: 332,516,800 | H13: 581,904,400 | I13: 12,469,380 | K13: 29,095,220
A14: 11 | D14: -12 | E14: 289.0 | F14: 267,036,000 | G14: 356,048,000 | H14: 623,084,000 | I14: 13,351,800 | K14: 31,154,200
A15: 12 | D15: -13 | E15: 335.8 | F15: 280,057,200 | G15: 372,066,400 | H15: 652,123,600 | I15: 14,002,860 | K15: 32,606,180
A16: 13 | D16: -14 | E16: 279.0 | F16: 262,818,000 | G16: 350,424,000 | H16: 613,242,000 | I16: 13,140,900 | K16: 30,662,100
A17: 14 | C17: ② | D17: -1 | E17: 268.7 | F17: 267,625,200 | G17: 356,833,600 | H17: 624,458,800 | I17: 13,381,260 | K17: 31,222,940
A18: 15 | D18: -2 | E18: 266.9 | F18: 248,217,000 | G18: 329,888,400 | H18: 578,105,400 | I18: 12,410,850 | K18: 28,905,270
A19: 16 | D19: -3 | E19: 271.8 | F19: 259,297,200 | G19: 345,729,600 | H19: 605,026,800 | I19: 12,964,860 | K19: 30,251,340
A20: 17 | D20: -4 | E20: 259.8 | F20: 241,614,000 | G20: 321,112,800 | H20: 562,726,800 | I20: 12,080,700 | K20: 28,136,340
A21: 18 | C21: ③ | D21: -1 | E21: 269.3 | F21: 268,222,800 | G21: 357,630,400 | H21: 625,853,200 | I21: 13,411,140 | K21: 31,292,660
A22: 19 | D22: -2 | E22: 275.3 | F22: 256,029,000 | G22: 340,270,800 | H22: 596,299,800 | I22: 12,801,450 | K22: 29,814,990
A23: 20 | D23: -3 | E23: 299.5 | F23: 271,347,000 | G23: 362,994,000 | H23: 634,341,000 | I23: 13,567,350 | K23: 31,717,050
A24: 21 | D24: -4 | E24: 255.3 | F24: 249,683,400 | G24: 331,890,000 | H24: 581,573,400 | I24: 12,484,170 | K24: 29,078,670
A25: 22 | D25: -5 | E25: 273.2 | F25: 267,189,600 | G25: 355,160,000 | H25: 622,349,600 | I25: 13,359,480 | K25: 31,117,480
A26: 23 | D26: -6 | E26: 267.5 | F26: 245,565,000 | G26: 327,420,000 | H26: 572,985,000 | I26: 12,278,250 | K26: 28,649,250
A27: 24 | D27: -7 | E27: 273.3 | F27: 250,889,400 | G27: 334,519,200 | H27: 585,408,600 | I27: 12,544,470 | K27: 29,270,430
A28: 25 | D28: -8 | E28: 279.4 | F28: 259,842,000 | G28: 345,338,400 | H28: 605,180,400 | I28: 12,992,100 | K28: 30,259,020
A29: 1 | B29: F-3 | C29: ① | D29: -1 | E29: 279.1 | F29: 286,356,600 | G29: 382,925,200 | H29: 669,281,800 | I29: 14,317,830 | K29: 33,464,090
A30: 2 | D30: -2 | E30: 279.0 | F30: 286,254,000 | G30: 382,788,000 | H30: 669,042,000 | I30: 14,312,700 | K30: 33,452,100
A31: 3 | D31: -3 | E31: 279.0 | F31: 286,254,000 | G31: 382,788,000 | H31: 669,042,000 | I31: 14,312,700 | K31: 33,452,100
A32: 4 | D32: -4 | E32: 291.1 | F32: 314,388,000 | G32: 419,184,000 | H32: 733,572,000 | I32: 15,719,400 | K32: 36,678,600
A33: 5 | C33: ② | D33: -1 | E33: 354.3 | F33: 382,644,000 | G33: 510,192,000 | H33: 892,836,000 | I33: 19,132,200 | K33: 44,641,800
A34: 6 | D34: -2 | E34: 360.4 | F34: 369,770,400 | G34: 494,468,800 | H34: 864,239,200 | I34: 18,488,520 | K34: 43,211,960
A35: 7 | C35: ③ | D35: -1 | E35: 272.1 | F35: 274,276,800 | G35: 365,702,400 | H35: 639,979,200 | I35: 13,713,840 | K35: 31,998,960
A36: 8 | D36: -2 | E36: 273.0 | F36: 275,184,000 | G36: 366,912,000 | H36: 642,096,000 | I36: 13,759,200 | K36: 32,104,800
A37: 9 | D37: -3 | E37: 267.0 | F37: 251,514,000 | G37: 335,352,000 | H37: 586,866,000 | I37: 12,575,700 | K37: 29,343,300
A38: 10 | D38: -4 | E38: 289.8 | F38: 267,775,200 | G38: 355,874,400 | H38: 623,649,600 | I38: 13,388,760 | K38: 31,182,480
A39: 11 | D39: -5 | E39: 265.9 | F39: 250,477,800 | G39: 333,970,400 | H39: 584,448,200 | I39: 12,523,890 | K39: 29,222,410
A40: 12 | D40: -6 | E40: 266.1 | F40: 250,666,200 | G40: 334,221,600 | H40: 584,887,800 | I40: 12,533,310 | K40: 29,244,390
A41: 13 | C41: ④ | D41: -1 | E41: 272.9 | F41: 275,083,200 | G41: 366,777,600 | H41: 641,860,800 | I41: 13,754,160 | K41: 32,093,040
A42: 14 | D42: -2 | E42: 272.8 | F42: 274,982,400 | G42: 366,643,200 | H42: 641,625,600 | I42: 13,749,120 | K42: 32,081,280
A43: 15 | D43: -3 | E43: 265.8 | F43: 250,383,600 | G43: 333,844,800 | H43: 584,228,400 | I43: 12,519,180 | K43: 29,211,420
A44: 16 | D44: -4 | E44: 265.9 | F44: 250,477,800 | G44: 333,970,400 | H44: 584,448,200 | I44: 12,523,890 | K44: 29,222,410
A45: 17 | D45: -5 | E45: 265.9 | F45: 250,477,800 | G45: 333,970,400 | H45: 584,448,200 | I45: 12,523,890 | K45: 29,222,410
A46: 18 | D46: -6 | E46: 266.1 | F46: 250,666,200 | G46: 334,221,600 | H46: 584,887,800 | I46: 12,533,310 | K46: 29,244,390
A47: 19 | D47: -7 | E47: 262.1 | F47: 259,479,000 | G47: 344,923,600 | H47: 604,402,600 | I47: 12,973,950 | K47: 30,220,130
A48: 20 | D48: -8 | E48: 271.2 | F48: 268,488,000 | G48: 356,899,200 | H48: 625,387,200 | I48: 13,424,400 | K48: 31,269,360
A49: 21 | D49: -9 | E49: 266.0 | F49: 250,572,000 | G49: 334,096,000 | H49: 584,668,000 | I49: 12,528,600 | K49: 29,233,400
A50: 22 | D50: -10 | E50: 266.0 | F50: 250,572,000 | G50: 334,096,000 | H50: 584,668,000 | I50: 12,528,600 | K50: 29,233,400
A51: 23 | D51: -11 | E51: 266.1 | F51: 250,666,200 | G51: 334,221,600 | H51: 584,887,800 | I51: 12,533,310 | K51: 29,244,390
A52: 24 | D52: -12 | E52: 266.0 | F52: 250,572,000 | G52: 334,096,000 | H52: 584,668,000 | I52: 12,528,600 | K52: 29,233,400
A53: 25 | C53: ⑤ | D53: -1 | E53: 335.1 | F53: 353,865,600 | G53: 473,161,200 | H53: 827,026,800 | I53: 17,693,280 | K53: 41,351,340
A54: 26 | D54: -2 | E54: 288.9 | F54: 296,411,400 | G54: 396,370,800 | H54: 692,782,200 | I54: 14,820,570 | K54: 34,639,110
A55: 27 | D55: -3 | E55: 289.0 | F55: 296,514,000 | G55: 396,508,000 | H55: 693,022,000 | I55: 14,825,700 | K55: 34,651,100
A56: 28 | D56: -4 | E56: 289.0 | F56: 296,514,000 | G56: 396,508,000 | H56: 693,022,000 | I56: 14,825,700 | K56: 34,651,100
A57: 29 | D57: -5 | E57: 289.0 | F57: 296,514,000 | G57: 396,508,000 | H57: 693,022,000 | I57: 14,825,700 | K57: 34,651,100
A58: 30 | D58: -6 | E58: 308.2 | F58: 323,610,000 | G58: 430,247,200 | H58: 753,857,200 | I58: 16,180,500 | K58: 37,692,860
A59: 31 | C59: ⑥ | D59: -1 | E59: 311.8 | F59: 319,906,800 | G59: 427,789,600 | H59: 747,696,400 | I59: 15,995,340 | K59: 37,384,820
A60: 32 | D60: -2 | E60: 311.1 | F60: 319,188,600 | G60: 426,829,200 | H60: 746,017,800 | I60: 15,959,430 | K60: 37,300,890
A61: 33 | D61: -3 | E61: 309.0 | F61: 317,034,000 | G61: 423,948,000 | H61: 740,982,000 | I61: 15,851,700 | K61: 37,049,100
A62: 34 | D62: -4 | E62: 309.0 | F62: 324,450,000 | G62: 431,364,000 | H62: 755,814,000 | I62: 16,222,500 | K62: 37,790,700
A63: 35 | C63: ⑦ | D63: -1 | E63: 284.0 | F63: 306,720,000 | G63: 408,960,000 | H63: 715,680,000 | I63: 15,336,000 | K63: 35,784,000
A64: 36 | D64: -2 | E64: 287.9 | F64: 295,385,400 | G64: 394,998,800 | H64: 690,384,200 | I64: 14,769,270 | K64: 34,519,210
A65: 37 | D65: -3 | E65: 287.8 | F65: 295,282,800 | G65: 394,861,600 | H65: 690,144,400 | I65: 14,764,140 | K65: 34,507,220
A66: 38 | D66: -4 | E66: 283.0 | F66: 290,358,000 | G66: 388,276,000 | H66: 678,634,000 | I66: =F66*0.05 -> 14,517,900 | K66: =H66*0.05 -> 33,931,700

Sheet Sheet6 (hidden)
A1: 다산신도시 진건지구 실수요자 점포겸용 단독주택용지 감정평가 결과
H2: 3.3058
A3: 일련 번호 | B3: 획지번호 | C3: 획지번호 | D3: 8차 승인 면적 적용 | K3: 16년 대비 증감 | L3: 16년 감정평가액(산술평균) | N3: 태평양 감정평가법인 | P3: 나라감정평가법인
D4: 주거/비주거 | E4: 공급면적(㎡) | F4: 공급단가(원) | G4: 평당단가(원) | H4: 감정평가액(원) | I4: 면적정산액(원) | L4: 단가(원) | M4: 금액(원) | N4: 단가(원) | O4: 금액(원) | P4: 단가(원) | Q4: 금액(원)
A5: 1 | B5: F-1①-1 | C5: F-1 1-1 | D5: 소계 | E5: 273.1 | F5: 2,352,000 | G5: =I5/E5*$H$2 -> 7,775,242 | H5: 642,096,000 | I5: =SUM(I6:I7) -> 642,331,200 | K5: =I5/M5 -> 106% | L5: 2,210,000 | M5: 603,330,000 | N5: 2,230,000 | O5: 608,790,000 | P5: 2,190,000 | Q5: 597,870,000
C6: F-1 1-1 | D6: 주거 부분 | E6: 163.9 | F6: 1,680,000 | G6: 0 | H6: 275,184,000 | I6: =E6*F6 -> 275,284,800 | K6: 0
C7: F-1 1-1 | D7: 비주거 부분 | E7: 109.2 | F7: 3,360,000 | G7: 0 | H7: 366,912,000 | I7: =E7*F7 -> 367,046,400 | K7: 0
A8: 2 | B8: F-1①-2 | C8: F-1 1-2 | D8: 소계 | E8: 269.9 | F8: 2,156,000 | G8: =I8/E8*$H$2 -> 7,127,305 | H8: 582,120,000 | I8: =SUM(I9:I10) -> 581,904,400 | K8: =I8/M8 -> 104% | L8: 2,080,000 | M8: 561,600,000 | N8: 2,100,000 | O8: 567,000,000 | P8: 2,060,000 | Q8: 556,200,000
C9: F-1 1-2 | D9: 주거 부분 | E9: 161.9 | F9: 1,540,000 | G9: 0 | H9: 249,480,000 | I9: =E9*F9 -> 249,387,600 | K9: 0
C10: F-1 1-2 | D10: 비주거 부분 | E10: 108.0 | F10: 3,080,000 | G10: 0 | H10: 332,640,000 | I10: =E10*F10 -> 332,516,800 | K10: 0
A11: 3 | B11: F-1①-3 | C11: F-1 1-3 | D11: 소계 | E11: 270.0 | F11: 2,156,000 | G11: =I11/E11*$H$2 -> 7,127,305 | H11: 582,120,000 | I11: =SUM(I12:I13) -> 582,120,000 | K11: =I11/M11 -> 104% | L11: 2,080,000 | M11: 561,600,000 | N11: 2,100,000 | O11: 567,000,000 | P11: 2,060,000 | Q11: 556,200,000
C12: F-1 1-3 | D12: 주거 부분 | E12: 162.0 | F12: 1,540,000 | G12: 0 | H12: 249,480,000 | I12: =E12*F12 -> 249,480,000 | K12: 0
C13: F-1 1-3 | D13: 비주거 부분 | E13: 108.0 | F13: 3,080,000 | G13: 0 | H13: 332,640,000 | I13: =E13*F13 -> 332,640,000 | K13: 0
A14: 4 | B14: F-1①-4 | C14: F-1 1-4 | D14: 소계 | E14: 270.0 | F14: 2,156,000 | G14: =I14/E14*$H$2 -> 7,127,305 | H14: 582,120,000 | I14: =SUM(I15:I16) -> 582,120,000 | K14: =I14/M14 -> 104% | L14: 2,080,000 | M14: 561,600,000 | N14: 2,100,000 | O14: 567,000,000 | P14: 2,060,000 | Q14: 556,200,000
C15: F-1 1-4 | D15: 주거 부분 | E15: 162.0 | F15: 1,540,000 | G15: 0 | H15: 249,480,000 | I15: =E15*F15 -> 249,480,000 | K15: 0
C16: F-1 1-4 | D16: 비주거 부분 | E16: 108.0 | F16: 3,080,000 | G16: 0 | H16: 332,640,000 | I16: =E16*F16 -> 332,640,000 | K16: 0
A17: 5 | B17: F-1①-5 | C17: F-1 1-5 | D17: 소계 | E17: 270.1 | F17: 2,156,000 | G17: =I17/E17*$H$2 -> 7,127,305 | H17: 582,120,000 | I17: =SUM(I18:I19) -> 582,335,600 | K17: =I17/M17 -> 104% | L17: 2,080,000 | M17: 561,600,000 | N17: 2,100,000 | O17: 567,000,000 | P17: 2,060,000 | Q17: 556,200,000
C18: F-1 1-5 | D18: 주거 부분 | E18: 162.1 | F18: 1,540,000 | G18: 0 | H18: 249,480,000 | I18: =E18*F18 -> 249,572,400 | K18: 0
C19: F-1 1-5 | D19: 비주거 부분 | E19: 108.0 | F19: 3,080,000 | G19: 0 | H19: 332,640,000 | I19: =E19*F19 -> 332,763,200 | K19: 0
A20: 6 | B20: F-1①-6 | C20: F-1 1-6 | D20: 소계 | E20: 270.0 | F20: 2,156,000 | G20: =I20/E20*$H$2 -> 7,127,305 | H20: 582,120,000 | I20: =SUM(I21:I22) -> 582,120,000 | K20: =I20/M20 -> 104% | L20: 2,080,000 | M20: 561,600,000 | N20: 2,100,000 | O20: 567,000,000 | P20: 2,060,000 | Q20: 556,200,000
C21: F-1 1-6 | D21: 주거 부분 | E21: 162.0 | F21: 1,540,000 | G21: 0 | H21: 249,480,000 | I21: =E21*F21 -> 249,480,000 | K21: 0
C22: F-1 1-6 | D22: 비주거 부분 | E22: 108.0 | F22: 3,080,000 | G22: 0 | H22: 332,640,000 | I22: =E22*F22 -> 332,640,000 | K22: 0
A23: 7 | B23: F-1①-7 | C23: F-1 1-7 | D23: 소계 | E23: 273.2 | F23: 2,310,000 | G23: =I23/E23*$H$2 -> 7,636,398 | H23: 630,630,000 | I23: =SUM(I24:I25) -> 631,092,000 | K23: =I23/M23 -> 106% | L23: 2,190,000 | M23: 597,870,000 | N23: 2,210,000 | O23: 603,330,000 | P23: 2,170,000 | Q23: 592,410,000
C24: F-1 1-7 | D24: 주거 부분 | E24: 163.9 | F24: 1,650,000 | G24: 0 | H24: 270,270,000 | I24: =E24*F24 -> 270,468,000 | K24: 0
C25: F-1 1-7 | D25: 비주거 부분 | E25: 109.3 | F25: 3,300,000 | G25: 0 | H25: 360,360,000 | I25: =E25*F25 -> 360,624,000 | K25: 0
A26: 8 | B26: F-1①-9 | C26: F-1 1-9 | D26: 소계 | E26: 269.8 | F26: 2,156,000 | G26: =I26/E26*$H$2 -> 7,127,305 | H26: 582,120,000 | I26: =SUM(I27:I28) -> 581,688,800 | K26: =I26/M26 -> 101% | L26: 2,135,000 | M26: 576,450,000 | N26: 2,150,000 | O26: 580,500,000 | P26: 2,120,000 | Q26: 572,400,000
C27: F-1 1-9 | D27: 주거 부분 | E27: 161.9 | F27: 1,540,000 | G27: 0 | H27: 249,480,000 | I27: =E27*F27 -> 249,295,200 | K27: 0
C28: F-1 1-9 | D28: 비주거 부분 | E28: 107.9 | F28: 3,080,000 | G28: 0 | H28: 332,640,000 | I28: =E28*F28 -> 332,393,600 | K28: 0
A29: 9 | B29: F-1①-10 | C29: F-1 1-10 | D29: 소계 | E29: 270.0 | F29: 2,156,000 | G29: =I29/E29*$H$2 -> 7,127,305 | H29: 582,120,000 | I29: =SUM(I30:I31) -> 582,120,000 | K29: =I29/M29 -> 101% | L29: 2,135,000 | M29: 576,450,000 | N29: 2,150,000 | O29: 580,500,000 | P29: 2,120,000 | Q29: 572,400,000
C30: F-1 1-10 | D30: 주거 부분 | E30: 162.0 | F30: 1,540,000 | G30: 0 | H30: 249,480,000 | I30: =E30*F30 -> 249,480,000 | K30: 0
C31: F-1 1-10 | D31: 비주거 부분 | E31: 108.0 | F31: 3,080,000 | G31: 0 | H31: 332,640,000 | I31: =E31*F31 -> 332,640,000 | K31: 0
A32: 10 | B32: F-1①-11 | C32: F-1 1-11 | D32: 소계 | E32: 269.9 | F32: 2,156,000 | G32: =I32/E32*$H$2 -> 7,127,305 | H32: 582,120,000 | I32: =SUM(I33:I34) -> 581,904,400 | K32: =I32/M32 -> 101% | L32: 2,135,000 | M32: 576,450,000 | N32: 2,150,000 | O32: 580,500,000 | P32: 2,120,000 | Q32: 572,400,000
C33: F-1 1-11 | D33: 주거 부분 | E33: 161.9 | F33: 1,540,000 | G33: 0 | H33: 249,480,000 | I33: =E33*F33 -> 249,387,600 | K33: 0
C34: F-1 1-11 | D34: 비주거 부분 | E34: 108.0 | F34: 3,080,000 | G34: 0 | H34: 332,640,000 | I34: =E34*F34 -> 332,516,800 | K34: 0
A35: 11 | B35: F-1①-12 | C35: F-1 1-12 | D35: 소계 | E35: 289.0 | F35: 2,156,000 | G35: =I35/E35*$H$2 -> 7,127,305 | H35: 623,084,000 | I35: =SUM(I36:I37) -> 623,084,000 | K35: =I35/M35 -> 101% | L35: 2,135,000 | M35: 617,015,000 | N35: 2,150,000 | O35: 621,350,000 | P35: 2,120,000 | Q35: 612,680,000
C36: F-1 1-12 | D36: 주거 부분 | E36: 173.4 | F36: 1,540,000 | G36: 0 | H36: 267,036,000 | I36: =E36*F36 -> 267,036,000 | K36: 0
C37: F-1 1-12 | D37: 비주거 부분 | E37: 115.6 | F37: 3,080,000 | G37: 0 | H37: 356,048,000 | I37: =E37*F37 -> 356,048,000 | K37: 0
A38: 12 | B38: F-1①-13 | C38: F-1 1-13 | D38: 소계 | E38: 335.8 | F38: 1,942,000 | G38: =I38/E38*$H$2 -> 6,419,864 | H38: 652,512,000 | I38: =SUM(I39:I40) -> 652,123,600 | K38: =I38/M38 -> 101% | L38: 1,920,000 | M38: 645,120,000 | N38: 1,930,000 | O38: 648,480,000 | P38: 1,910,000 | Q38: 641,760,000
C39: F-1 1-13 | D39: 주거 부분 | E39: 201.5 | F39: 1,390,000 | G39: 0 | H39: 280,224,000 | I39: =E39*F39 -> 280,057,200 | K39: 0
C40: F-1 1-13 | D40: 비주거 부분 | E40: 134.3 | F40: 2,770,000 | G40: 0 | H40: 372,288,000 | I40: =E40*F40 -> 372,066,400 | K40: 0
A41: 13 | B41: F-1①-14 | C41: F-1 1-14 | D41: 소계 | E41: 279.0 | F41: 2,198,000 | G41: =I41/E41*$H$2 -> 7,266,148 | H41: 613,242,000 | I41: =SUM(I42:I43) -> 613,242,000 | K41: =I41/M41 -> 105% | L41: 2,100,000 | M41: 585,900,000 | N41: 2,120,000 | O41: 591,480,000 | P41: 2,080,000 | Q41: 580,320,000
C42: F-1 1-14 | D42: 주거 부분 | E42: 167.4 | F42: 1,570,000 | G42: 0 | H42: 262,818,000 | I42: =E42*F42 -> 262,818,000 | K42: 0
C43: F-1 1-14 | D43: 비주거 부분 | E43: 111.6 | F43: 3,140,000 | G43: 0 | H43: 350,424,000 | I43: =E43*F43 -> 350,424,000 | K43: 0
A44: 14 | B44: F-1②-1 | C44: F-1 2-1 | D44: 소계 | E44: 268.7 | F44: 2,324,000 | G44: =I44/E44*$H$2 -> 7,682,679 | H44: 625,156,000 | I44: =SUM(I45:I46) -> 624,458,800 | K44: =I44/M44 -> 106% | L44: 2,190,000 | M44: 589,110,000 | N44: 2,210,000 | O44: 594,490,000 | P44: 2,170,000 | Q44: 583,730,000
C45: F-1 2-1 | D45: 주거 부분 | E45: 161.2 | F45: 1,660,000 | G45: 0 | H45: 267,924,000 | I45: =E45*F45 -> 267,625,200 | K45: 0
C46: F-1 2-1 | D46: 비주거 부분 | E46: 107.5 | F46: 3,320,000 | G46: 0 | H46: 357,232,000 | I46: =E46*F46 -> 356,833,600 | K46: 0
A47: 15 | B47: F-1②-2 | C47: F-1 2-2 | D47: 소계 | E47: 266.9 | F47: 2,166,000 | G47: =I47/E47*$H$2 -> 7,160,363 | H47: 578,322,000 | I47: =SUM(I48:I49) -> 578,105,400 | K47: =I47/M47 -> 107% | L47: 2,030,000 | M47: 542,010,000 | N47: 2,040,000 | O47: 544,680,000 | P47: 2,020,000 | Q47: 539,340,000
C48: F-1 2-2 | D48: 주거 부분 | E48: 160.1 | F48: 1,550,000 | G48: 0 | H48: 248,310,000 | I48: =E48*F48 -> 248,217,000 | K48: 0
C49: F-1 2-2 | D49: 비주거 부분 | E49: 106.8 | F49: 3,090,000 | G49: 0 | H49: 330,012,000 | I49: =E49*F49 -> 329,888,400 | K49: 0
A50: 16 | B50: F-1②-3 | C50: F-1 2-3 | D50: 소계 | E50: 271.8 | F50: 2,226,000 | G50: =I50/E50*$H$2 -> 7,358,711 | H50: 605,472,000 | I50: =SUM(I51:I52) -> 605,026,800 | K50: =I50/M50 -> 104% | L50: 2,135,000 | M50: 580,720,000 | N50: 2,150,000 | O50: 584,800,000 | P50: 2,120,000 | Q50: 576,640,000
C51: F-1 2-3 | D51: 주거 부분 | E51: 163.1 | F51: 1,590,000 | G51: 0 | H51: 259,488,000 | I51: =E51*F51 -> 259,297,200 | K51: 0
C52: F-1 2-3 | D52: 비주거 부분 | E52: 108.7 | F52: 3,180,000 | G52: 0 | H52: 345,984,000 | I52: =E52*F52 -> 345,729,600 | K52: 0
A53: 17 | B53: F-1②-4 | C53: F-1 2-4 | D53: 소계 | E53: 259.8 | F53: 2,166,000 | G53: =I53/E53*$H$2 -> 7,160,363 | H53: 563,160,000 | I53: =SUM(I54:I55) -> 562,726,800 | K53: =I53/M53 -> 
C54: F-1 2-4 | D54: 주거 부분 | E54: 155.9 | F54: 1,550,000 | G54: 0 | H54: 241,800,000 | I54: =E54*F54 -> 241,614,000 | K54: 0
C55: F-1 2-4 | D55: 비주거 부분 | E55: 103.9 | F55: 3,090,000 | G55: 0 | H55: 321,360,000 | I55: =E55*F55 -> 321,112,800 | K55: 0
A56: 18 | B56: F-1③-1 | C56: F-1 3-1 | D56: 소계 | E56: 269.3 | F56: 2,324,000 | G56: =I56/E56*$H$2 -> 7,682,679 | H56: 625,156,000 | I56: =SUM(I57:I58) -> 625,853,200 | K56: =I56/M56 -> 106% | L56: 2,190,000 | M56: 589,110,000 | N56: 2,210,000 | O56: 594,490,000 | P56: 2,170,000 | Q56: 583,730,000
C57: F-1 3-1 | D57: 주거 부분 | E57: 161.6 | F57: 1,660,000 | G57: 0 | H57: 267,924,000 | I57: =E57*F57 -> 268,222,800 | K57: 0
C58: F-1 3-1 | D58: 비주거 부분 | E58: 107.7 | F58: 3,320,000 | G58: 0 | H58: 357,232,000 | I58: =E58*F58 -> 357,630,400 | K58: 0
A59: 19 | B59: F-1③-2 | C59: F-1 3-2 | D59: 소계 | E59: 275.3 | F59: 2,166,000 | G59: =I59/E59*$H$2 -> 7,160,363 | H59: 595,650,000 | I59: =SUM(I60:I61) -> 596,299,800 | K59: =I59/M59 -> 104% | L59: 2,080,000 | M59: 572,000,000 | N59: 2,100,000 | O59: 577,500,000 | P59: 2,060,000 | Q59: 566,500,000
C60: F-1 3-2 | D60: 주거 부분 | E60: 165.2 | F60: 1,550,000 | G60: 0 | H60: 255,750,000 | I60: =E60*F60 -> 256,029,000 | K60: 0
C61: F-1 3-2 | D61: 비주거 부분 | E61: 110.1 | F61: 3,090,000 | G61: 0 | H61: 339,900,000 | I61: =E61*F61 -> 340,270,800 | K61: 0
A62: 20 | B62: F-1③-3 | C62: F-1 3-3 | D62: 소계 | E62: 299.5 | F62: 2,118,000 | G62: =I62/E62*$H$2 -> 7,001,684 | H62: 633,282,000 | I62: =SUM(I63:I64) -> 634,341,000 | K62: =I62/M62 -> 103% | L62: 2,050,000 | M62: 612,950,000 | N62: 2,060,000 | O62: 615,940,000 | P62: 2,040,000 | Q62: 609,960,000
C63: F-1 3-3 | D63: 주거 부분 | E63: 179.7 | F63: 1,510,000 | G63: 0 | H63: 270,894,000 | I63: =E63*F63 -> 271,347,000 | K63: 0
C64: F-1 3-3 | D64: 비주거 부분 | E64: 119.8 | F64: 3,030,000 | G64: 0 | H64: 362,388,000 | I64: =E64*F64 -> 362,994,000 | K64: 0
A65: 21 | B65: F-1③-4 | C65: F-1 3-4 | D65: 소계 | E65: 255.3 | F65: 2,278,000 | G65: =I65/E65*$H$2 -> 7,530,612 | H65: 580,890,000 | I65: =SUM(I66:I67) -> 581,573,400 | K65: =I65/M65 -> 
C66: F-1 3-4 | D66: 주거 부분 | E66: 153.2 | F66: 1,630,000 | G66: 0 | H66: 249,390,000 | I66: =E66*F66 -> 249,683,400 | K66: 0
C67: F-1 3-4 | D67: 비주거 부분 | E67: 102.1 | F67: 3,250,000 | G67: 0 | H67: 331,500,000 | I67: =E67*F67 -> 331,890,000 | K67: 0
A68: 22 | B68: F-1③-5 | C68: F-1 3-5 | D68: 소계 | E68: 273.2 | F68: 2,278,000 | G68: =I68/E68*$H$2 -> 7,530,612 | H68: 621,894,000 | I68: =SUM(I69:I70) -> 622,349,600 | K68: =I68/M68 -> 104% | L68: 2,190,000 | M68: 597,870,000 | N68: 2,210,000 | O68: 603,330,000 | P68: 2,170,000 | Q68: 592,410,000
C69: F-1 3-5 | D69: 주거 부분 | E69: 163.9 | F69: 1,630,000 | G69: 0 | H69: 266,994,000 | I69: =E69*F69 -> 267,189,600 | K69: 0
C70: F-1 3-5 | D70: 비주거 부분 | E70: 109.3 | F70: 3,250,000 | G70: 0 | H70: 354,900,000 | I70: =E70*F70 -> 355,160,000 | K70: 0
A71: 23 | B71: F-1③-6 | C71: F-1 3-6 | D71: 소계 | E71: 267.5 | F71: 2,142,000 | G71: =I71/E71*$H$2 -> 7,081,024 | H71: 571,914,000 | I71: =SUM(I72:I73) -> 572,985,000 | K71: =I71/M71 -> 102% | L71: 2,100,000 | M71: 560,700,000 | N71: 2,120,000 | O71: 566,040,000 | P71: 2,080,000 | Q71: 555,360,000
C72: F-1 3-6 | D72: 주거 부분 | E72: 160.5 | F72: 1,530,000 | G72: 0 | H72: 245,106,000 | I72: =E72*F72 -> 245,565,000 | K72: 0
C73: F-1 3-6 | D73: 비주거 부분 | E73: 107.0 | F73: 3,060,000 | G73: 0 | H73: 326,808,000 | I73: =E73*F73 -> 327,420,000 | K73: 0
A74: 24 | B74: F-1③-7 | C74: F-1 3-7 | D74: 소계 | E74: 273.3 | F74: 2,142,000 | G74: =I74/E74*$H$2 -> 7,081,024 | H74: 584,766,000 | I74: =SUM(I75:I76) -> 585,408,600 | K74: =I74/M74 -> 103% | L74: 2,080,000 | M74: 567,840,000 | N74: 2,080,000 | O74: 567,840,000 | P74: 2,080,000 | Q74: 567,840,000
C75: F-1 3-7 | D75: 주거 부분 | E75: 164.0 | F75: 1,530,000 | G75: 0 | H75: 250,614,000 | I75: =E75*F75 -> 250,889,400 | K75: 0
C76: F-1 3-7 | D76: 비주거 부분 | E76: 109.3 | F76: 3,060,000 | G76: 0 | H76: 334,152,000 | I76: =E76*F76 -> 334,519,200 | K76: 0
A77: 25 | B77: F-1③-8 | C77: F-1 3-8 | D77: 소계 | E77: 279.4 | F77: 2,166,000 | G77: =I77/E77*$H$2 -> 7,160,363 | H77: 604,314,000 | I77: =SUM(I78:I79) -> 605,180,400 | K77: =I77/M77 -> 102% | L77: 2,135,000 | M77: 595,665,000 | N77: 2,150,000 | O77: 599,850,000 | P77: 2,120,000 | Q77: 591,480,000
C78: F-1 3-8 | D78: 주거 부분 | E78: 167.6 | F78: 1,550,000 | G78: 0 | H78: 259,470,000 | I78: =E78*F78 -> 259,842,000 | K78: 0
C79: F-1 3-8 | D79: 비주거 부분 | E79: 111.8 | F79: 3,090,000 | G79: 0 | H79: 344,844,000 | I79: =E79*F79 -> 345,338,400 | K79: 0
A80: 26 | B80: F-3①-1 | C80: F-3 1-1 | D80: 소계 | E80: 279.1 | F80: 2,398,000 | G80: =I80/E80*$H$2 -> 7,927,308 | H80: 669,042,000 | I80: =SUM(I81:I82) -> 669,281,800 | K80: =I80/M80 -> 103% | L80: 2,340,000 | M80: 652,860,000 | N80: 2,340,000 | O80: 652,860,000 | P80: 2,340,000 | Q80: 652,860,000
C81: F-3 1-1 | D81: 주거 부분 | E81: 167.5 | F81: 1,710,000 | G81: 0 | H81: 286,254,000 | I81: =E81*F81 -> 286,356,600 | K81: 0
C82: F-3 1-1 | D82: 비주거 부분 | E82: 111.6 | F82: 3,430,000 | G82: 0 | H82: 382,788,000 | I82: =E82*F82 -> 382,925,200 | K82: 0
A83: 27 | B83: F-3①-2 | C83: F-3 1-2 | D83: 소계 | E83: 279.0 | F83: 2,398,000 | G83: =I83/E83*$H$2 -> 7,927,308 | H83: 669,042,000 | I83: =SUM(I84:I85) -> 669,042,000 | K83: =I83/M83 -> 104% | L83: 2,310,000 | M83: 644,490,000 | N83: 2,310,000 | O83: 644,490,000 | P83: 2,310,000 | Q83: 644,490,000
C84: F-3 1-2 | D84: 주거 부분 | E84: 167.4 | F84: 1,710,000 | G84: 0 | H84: 286,254,000 | I84: =E84*F84 -> 286,254,000 | K84: 0
C85: F-3 1-2 | D85: 비주거 부분 | E85: 111.6 | F85: 3,430,000 | G85: 0 | H85: 382,788,000 | I85: =E85*F85 -> 382,788,000 | K85: 0
A86: 28 | B86: F-3①-3 | C86: F-3 1-3 | D86: 소계 | E86: 279.0 | F86: 2,398,000 | G86: =I86/E86*$H$2 -> 7,927,308 | H86: 669,042,000 | I86: =SUM(I87:I88) -> 669,042,000 | K86: =I86/M86 -> 104% | L86: 2,310,000 | M86: 644,490,000 | N86: 2,310,000 | O86: 644,490,000 | P86: 2,310,000 | Q86: 644,490,000
C87: F-3 1-3 | D87: 주거 부분 | E87: 167.4 | F87: 1,710,000 | G87: 0 | H87: 286,254,000 | I87: =E87*F87 -> 286,254,000 | K87: 0
C88: F-3 1-3 | D88: 비주거 부분 | E88: 111.6 | F88: 3,430,000 | G88: 0 | H88: 382,788,000 | I88: =E88*F88 -> 382,788,000 | K88: 0
A89: 29 | B89: F-3①-4 | C89: F-3 1-4 | D89: 소계 | E89: 291.1 | F89: 2,520,000 | G89: =I89/E89*$H$2 -> 8,330,616 | H89: 733,320,000 | I89: =SUM(I90:I91) -> 733,572,000 | K89: =I89/M89 -> 105% | L89: 2,410,000 | M89: 701,310,000 | N89: 2,410,000 | O89: 701,310,000 | P89: 2,410,000 | Q89: 701,310,000
C90: F-3 1-4 | D90: 주거 부분 | E90: 174.7 | F90: 1,800,000 | G90: 0 | H90: 314,280,000 | I90: =E90*F90 -> 314,388,000 | K90: 0
C91: F-3 1-4 | D91: 비주거 부분 | E91: 116.4 | F91: 3,600,000 | G91: 0 | H91: 419,040,000 | I91: =E91*F91 -> 419,184,000 | K91: 0
A92: 30 | B92: F-3②-1 | C92: F-3 2-1 | D92: 소계 | E92: 354.3 | F92: 2,520,000 | G92: =I92/E92*$H$2 -> 8,330,616 | H92: 892,080,000 | I92: =SUM(I93:I94) -> 892,836,000 | K92: =I92/M92 -> 105% | L92: 2,410,000 | M92: 853,140,000 | N92: 2,410,000 | O92: 853,140,000 | P92: 2,410,000 | Q92: 853,140,000
C93: F-3 2-1 | D93: 주거 부분 | E93: 212.6 | F93: 1,800,000 | G93: 0 | H93: 382,320,000 | I93: =E93*F93 -> 382,644,000 | K93: 0
C94: F-3 2-1 | D94: 비주거 부분 | E94: 141.7 | F94: 3,600,000 | G94: 0 | H94: 509,760,000 | I94: =E94*F94 -> 510,192,000 | K94: 0
A95: 31 | B95: F-3②-2 | C95: F-3 2-2 | D95: 소계 | E95: 360.4 | F95: 2,398,000 | G95: =I95/E95*$H$2 -> 7,927,308 | H95: 863,280,000 | I95: =SUM(I96:I97) -> 864,239,200 | K95: =I95/M95 -> 104% | L95: 2,310,000 | M95: 831,600,000 | N95: 2,310,000 | O95: 831,600,000 | P95: 2,310,000 | Q95: 831,600,000
C96: F-3 2-2 | D96: 주거 부분 | E96: 216.2 | F96: 1,710,000 | G96: 0 | H96: 369,360,000 | I96: =E96*F96 -> 369,770,400 | K96: 0
C97: F-3 2-2 | D97: 비주거 부분 | E97: 144.2 | F97: 3,430,000 | G97: 0 | H97: 493,920,000 | I97: =E97*F97 -> 494,468,800 | K97: 0
A98: 32 | B98: F-3③-1 | C98: F-3 3-1 | D98: 소계 | E98: 272.1 | F98: 2,352,000 | G98: =I98/E98*$H$2 -> 7,775,242 | H98: 639,744,000 | I98: =SUM(I99:I100) -> 639,979,200 | K98: =I98/M98 -> 106% | L98: 2,210,000 | M98: 601,120,000 | N98: 2,210,000 | O98: 601,120,000 | P98: 2,210,000 | Q98: 601,120,000
C99: F-3 3-1 | D99: 주거 부분 | E99: 163.3 | F99: 1,680,000 | G99: 0 | H99: 274,176,000 | I99: =E99*F99 -> 274,276,800 | K99: 0
C100: F-3 3-1 | D100: 비주거 부분 | E100: 108.8 | F100: 3,360,000 | G100: 0 | H100: 365,568,000 | I100: =E100*F100 -> 365,702,400 | K100: 0
A101: 33 | B101: F-3③-2 | C101: F-3 3-2 | D101: 소계 | E101: 273.0 | F101: 2,352,000 | G101: =I101/E101*$H$2 -> 7,775,242 | H101: 642,096,000 | I101: =SUM(I102:I103) -> 642,096,000 | K101: =I101/M101 -> 109% | L101: 2,160,000 | M101: 589,680,000 | N101: 2,170,000 | O101: 592,410,000 | P101: 2,150,000 | Q101: 586,950,000
C102: F-3 3-2 | D102: 주거 부분 | E102: 163.8 | F102: 1,680,000 | G102: 0 | H102: 275,184,000 | I102: =E102*F102 -> 275,184,000 | K102: 0
C103: F-3 3-2 | D103: 비주거 부분 | E103: 109.2 | F103: 3,360,000 | G103: 0 | H103: 366,912,000 | I103: =E103*F103 -> 366,912,000 | K103: 0
A104: 34 | B104: F-3③-3 | C104: F-3 3-3 | D104: 소계 | E104: 267.0 | F104: 2,198,000 | G104: =I104/E104*$H$2 -> 7,266,148 | H104: 586,866,000 | I104: =SUM(I105:I106) -> 586,866,000 | K104: =I104/M104 -> 106% | L104: 2,070,000 | M104: 552,690,000 | N104: 2,080,000 | O104: 555,360,000 | P104: 2,060,000 | Q104: 550,020,000
C105: F-3 3-3 | D105: 주거 부분 | E105: 160.2 | F105: 1,570,000 | G105: 0 | H105: 251,514,000 | I105: =E105*F105 -> 251,514,000 | K105: 0
C106: F-3 3-3 | D106: 비주거 부분 | E106: 106.8 | F106: 3,140,000 | G106: 0 | H106: 335,352,000 | I106: =E106*F106 -> 335,352,000 | K106: 0
A107: 35 | B107: F-3③-4 | C107: F-3 3-4 | D107: 소계 | E107: 289.8 | F107: 2,152,000 | G107: =I107/E107*$H$2 -> 7,114,082 | H107: 624,080,000 | I107: =SUM(I108:I109) -> 623,649,600 | K107: =I107/M107 -> 104% | L107: 2,070,000 | M107: 600,300,000 | N107: 2,080,000 | O107: 603,200,000 | P107: 2,060,000 | Q107: 597,400,000
C108: F-3 3-4 | D108: 주거 부분 | E108: 173.9 | F108: 1,540,000 | G108: 0 | H108: 267,960,000 | I108: =E108*F108 -> 267,775,200 | K108: 0
C109: F-3 3-4 | D109: 비주거 부분 | E109: 115.9 | F109: 3,070,000 | G109: 0 | H109: 356,120,000 | I109: =E109*F109 -> 355,874,400 | K109: 0
A110: 36 | B110: F-3③-5 | C110: F-3 3-5 | D110: 소계 | E110: 265.9 | F110: 2,198,000 | G110: =I110/E110*$H$2 -> 7,266,148 | H110: 584,668,000 | I110: =SUM(I111:I112) -> 584,448,200 | K110: =I110/M110 -> 104% | L110: 2,120,000 | M110: 563,920,000 | N110: 2,120,000 | O110: 563,920,000 | P110: 2,120,000 | Q110: 563,920,000
C111: F-3 3-5 | D111: 주거 부분 | E111: 159.5 | F111: 1,570,000 | G111: 0 | H111: 250,572,000 | I111: =E111*F111 -> 250,477,800 | K111: 0
C112: F-3 3-5 | D112: 비주거 부분 | E112: 106.4 | F112: 3,140,000 | G112: 0 | H112: 334,096,000 | I112: =E112*F112 -> 333,970,400 | K112: 0
A113: 37 | B113: F-3③-6 | C113: F-3 3-6 | D113: 소계 | E113: 266.1 | F113: 2,198,000 | G113: =I113/E113*$H$2 -> 7,266,148 | H113: 584,668,000 | I113: =SUM(I114:I115) -> 584,887,800 | K113: =I113/M113 -> 104% | L113: 2,120,000 | M113: 563,920,000 | N113: 2,120,000 | O113: 563,920,000 | P113: 2,120,000 | Q113: 563,920,000
C114: F-3 3-6 | D114: 주거 부분 | E114: 159.7 | F114: 1,570,000 | G114: 0 | H114: 250,572,000 | I114: =E114*F114 -> 250,666,200 | K114: 0
C115: F-3 3-6 | D115: 비주거 부분 | E115: 106.4 | F115: 3,140,000 | G115: 0 | H115: 334,096,000 | I115: =E115*F115 -> 334,221,600 | K115: 0
A116: 38 | B116: F-3④-1 | C116: F-3 4-1 | D116: 소계 | E116: 272.9 | F116: 2,352,000 | G116: =I116/E116*$H$2 -> 7,775,242 | H116: 642,096,000 | I116: =SUM(I117:I118) -> 641,860,800 | K116: =I116/M116 -> 106% | L116: 2,210,000 | M116: 603,330,000 | N116: 2,210,000 | O116: 603,330,000 | P116: 2,210,000 | Q116: 603,330,000
C117: F-3 4-1 | D117: 주거 부분 | E117: 163.7 | F117: 1,680,000 | G117: 0 | H117: 275,184,000 | I117: =E117*F117 -> 275,083,200 | K117: 0
C118: F-3 4-1 | D118: 비주거 부분 | E118: 109.2 | F118: 3,360,000 | G118: 0 | H118: 366,912,000 | I118: =E118*F118 -> 366,777,600 | K118: 0
A119: 39 | B119: F-3④-2 | C119: F-3 4-2 | D119: 소계 | E119: 272.8 | F119: 2,352,000 | G119: =I119/E119*$H$2 -> 7,775,242 | H119: 642,096,000 | I119: =SUM(I120:I121) -> 641,625,600 | K119: =I119/M119 -> 109% | L119: 2,160,000 | M119: 589,680,000 | N119: 2,170,000 | O119: 592,410,000 | P119: 2,150,000 | Q119: 586,950,000
C120: F-3 4-2 | D120: 주거 부분 | E120: 163.7 | F120: 1,680,000 | G120: 0 | H120: 275,184,000 | I120: =E120*F120 -> 274,982,400 | K120: 0
C121: F-3 4-2 | D121: 비주거 부분 | E121: 109.1 | F121: 3,360,000 | G121: 0 | H121: 366,912,000 | I121: =E121*F121 -> 366,643,200 | K121: 0
A122: 40 | B122: F-3④-3 | C122: F-3 4-3 | D122: 소계 | E122: 265.8 | F122: 2,198,000 | G122: =I122/E122*$H$2 -> 7,266,148 | H122: 584,668,000 | I122: =SUM(I123:I124) -> 584,228,400 | K122: =I122/M122 -> 106% | L122: 2,070,000 | M122: 550,620,000 | N122: 2,080,000 | O122: 553,280,000 | P122: 2,060,000 | Q122: 547,960,000
C123: F-3 4-3 | D123: 주거 부분 | E123: 159.5 | F123: 1,570,000 | G123: 0 | H123: 250,572,000 | I123: =E123*F123 -> 250,383,600 | K123: 0
C124: F-3 4-3 | D124: 비주거 부분 | E124: 106.3 | F124: 3,140,000 | G124: 0 | H124: 334,096,000 | I124: =E124*F124 -> 333,844,800 | K124: 0
A125: 41 | B125: F-3④-4 | C125: F-3 4-4 | D125: 소계 | E125: 265.9 | F125: 2,198,000 | G125: =I125/E125*$H$2 -> 7,266,148 | H125: 584,668,000 | I125: =SUM(I126:I127) -> 584,448,200 | K125: =I125/M125 -> 106% | L125: 2,070,000 | M125: 550,620,000 | N125: 2,080,000 | O125: 553,280,000 | P125: 2,060,000 | Q125: 547,960,000
C126: F-3 4-4 | D126: 주거 부분 | E126: 159.5 | F126: 1,570,000 | G126: 0 | H126: 250,572,000 | I126: =E126*F126 -> 250,477,800 | K126: 0
C127: F-3 4-4 | D127: 비주거 부분 | E127: 106.4 | F127: 3,140,000 | G127: 0 | H127: 334,096,000 | I127: =E127*F127 -> 333,970,400 | K127: 0
A128: 42 | B128: F-3④-5 | C128: F-3 4-5 | D128: 소계 | E128: 265.9 | F128: 2,198,000 | G128: =I128/E128*$H$2 -> 7,266,148 | H128: 584,668,000 | I128: =SUM(I129:I130) -> 584,448,200 | K128: =I128/M128 -> 106% | L128: 2,070,000 | M128: 550,620,000 | N128: 2,080,000 | O128: 553,280,000 | P128: 2,060,000 | Q128: 547,960,000
C129: F-3 4-5 | D129: 주거 부분 | E129: 159.5 | F129: 1,570,000 | G129: 0 | H129: 250,572,000 | I129: =E129*F129 -> 250,477,800 | K129: 0
C130: F-3 4-5 | D130: 비주거 부분 | E130: 106.4 | F130: 3,140,000 | G130: 0 | H130: 334,096,000 | I130: =E130*F130 -> 333,970,400 | K130: 0
A131: 43 | B131: F-3④-6 | C131: F-3 4-6 | D131: 소계 | E131: 266.1 | F131: 2,198,000 | G131: =I131/E131*$H$2 -> 7,266,148 | H131: 584,668,000 | I131: =SUM(I132:I133) -> 584,887,800 | K131: =I131/M131 -> 106% | L131: 2,070,000 | M131: 550,620,000 | N131: 2,080,000 | O131: 553,280,000 | P131: 2,060,000 | Q131: 547,960,000
C132: F-3 4-6 | D132: 주거 부분 | E132: 159.7 | F132: 1,570,000 | G132: 0 | H132: 250,572,000 | I132: =E132*F132 -> 250,666,200 | K132: 0
C133: F-3 4-6 | D133: 비주거 부분 | E133: 106.4 | F133: 3,140,000 | G133: 0 | H133: 334,096,000 | I133: =E133*F133 -> 334,221,600 | K133: 0
A134: 44 | B134: F-3④-7 | C134: F-3 4-7 | D134: 소계 | E134: 262.1 | F134: 2,306,000 | G134: =I134/E134*$H$2 -> 7,623,175 | H134: 604,172,000 | I134: =SUM(I135:I136) -> 604,402,600 | K134: =I134/M134 -> 
C135: F-3 4-7 | D135: 주거 부분 | E135: 157.3 | F135: 1,650,000 | G135: 0 | H135: 259,380,000 | I135: =E135*F135 -> 259,479,000 | K135: 0
C136: F-3 4-7 | D136: 비주거 부분 | E136: 104.8 | F136: 3,290,000 | G136: 0 | H136: 344,792,000 | I136: =E136*F136 -> 344,923,600 | K136: 0
A137: 45 | B137: F-3④-8 | C137: F-3 4-8 | D137: 소계 | E137: 271.2 | F137: 2,306,000 | G137: =I137/E137*$H$2 -> 7,623,175 | H137: 624,926,000 | I137: =SUM(I138:I139) -> 625,387,200 | K137: =I137/M137 -> 104% | L137: 2,210,000 | M137: 598,910,000 | N137: 2,210,000 | O137: 598,910,000 | P137: 2,210,000 | Q137: 598,910,000
C138: F-3 4-8 | D138: 주거 부분 | E138: 162.7 | F138: 1,650,000 | G138: 0 | H138: 268,290,000 | I138: =E138*F138 -> 268,488,000 | K138: 0
C139: F-3 4-8 | D139: 비주거 부분 | E139: 108.5 | F139: 3,290,000 | G139: 0 | H139: 356,636,000 | I139: =E139*F139 -> 356,899,200 | K139: 0
A140: 46 | B140: F-3④-9 | C140: F-3 4-9 | D140: 소계 | E140: 266.0 | F140: 2,198,000 | G140: =I140/E140*$H$2 -> 7,266,148 | H140: 584,668,000 | I140: =SUM(I141:I142) -> 584,668,000 | K140: =I140/M140 -> 104% | L140: 2,120,000 | M140: 563,920,000 | N140: 2,120,000 | O140: 563,920,000 | P140: 2,120,000 | Q140: 563,920,000
C141: F-3 4-9 | D141: 주거 부분 | E141: 159.6 | F141: 1,570,000 | G141: 0 | H141: 250,572,000 | I141: =E141*F141 -> 250,572,000 | K141: 0
C142: F-3 4-9 | D142: 비주거 부분 | E142: 106.4 | F142: 3,140,000 | G142: 0 | H142: 334,096,000 | I142: =E142*F142 -> 334,096,000 | K142: 0
A143: 47 | B143: F-3④-10 | C143: F-3 4-10 | D143: 소계 | E143: 266.0 | F143: 2,198,000 | G143: =I143/E143*$H$2 -> 7,266,148 | H143: 584,668,000 | I143: =SUM(I144:I145) -> 584,668,000 | K143: =I143/M143 -> 104% | L143: 2,120,000 | M143: 563,920,000 | N143: 2,120,000 | O143: 563,920,000 | P143: 2,120,000 | Q143: 563,920,000
C144: F-3 4-10 | D144: 주거 부분 | E144: 159.6 | F144: 1,570,000 | G144: 0 | H144: 250,572,000 | I144: =E144*F144 -> 250,572,000 | K144: 0
C145: F-3 4-10 | D145: 비주거 부분 | E145: 106.4 | F145: 3,140,000 | G145: 0 | H145: 334,096,000 | I145: =E145*F145 -> 334,096,000 | K145: 0
A146: 48 | B146: F-3④-11 | C146: F-3 4-11 | D146: 소계 | E146: 266.1 | F146: 2,198,000 | G146: =I146/E146*$H$2 -> 7,266,148 | H146: 584,668,000 | I146: =SUM(I147:I148) -> 584,887,800 | K146: =I146/M146 -> 104% | L146: 2,120,000 | M146: 563,920,000 | N146: 2,120,000 | O146: 563,920,000 | P146: 2,120,000 | Q146: 563,920,000
C147: F-3 4-11 | D147: 주거 부분 | E147: 159.7 | F147: 1,570,000 | G147: 0 | H147: 250,572,000 | I147: =E147*F147 -> 250,666,200 | K147: 0
C148: F-3 4-11 | D148: 비주거 부분 | E148: 106.4 | F148: 3,140,000 | G148: 0 | H148: 334,096,000 | I148: =E148*F148 -> 334,221,600 | K148: 0
A149: 49 | B149: F-3④-12 | C149: F-3 4-12 | D149: 소계 | E149: 266.0 | F149: 2,198,000 | G149: =I149/E149*$H$2 -> 7,266,148 | H149: 584,668,000 | I149: =SUM(I150:I151) -> 584,668,000 | K149: =I149/M149 -> 104% | L149: 2,120,000 | M149: 563,920,000 | N149: 2,120,000 | O149: 563,920,000 | P149: 2,120,000 | Q149: 563,920,000
C150: F-3 4-12 | D150: 주거 부분 | E150: 159.6 | F150: 1,570,000 | G150: 0 | H150: 250,572,000 | I150: =E150*F150 -> 250,572,000 | K150: 0
C151: F-3 4-12 | D151: 비주거 부분 | E151: 106.4 | F151: 3,140,000 | G151: 0 | H151: 334,096,000 | I151: =E151*F151 -> 334,096,000 | K151: 0
A152: 50 | B152: F-3⑤-1 | C152: F-3 5-1 | D152: 소계 | E152: 335.1 | F152: 2,468,000 | G152: =I152/E152*$H$2 -> 8,158,714 | H152: 826,780,000 | I152: =SUM(I153:I154) -> 827,026,800 | K152: =I152/M152 -> 108% | L152: 2,280,000 | M152: 763,800,000 | N152: 2,290,000 | O152: 767,150,000 | P152: 2,270,000 | Q152: 760,450,000
C153: F-3 5-1 | D153: 주거 부분 | E153: 201.1 | F153: 1,760,000 | G153: 0 | H153: 353,760,000 | I153: =E153*F153 -> 353,865,600 | K153: 0
C154: F-3 5-1 | D154: 비주거 부분 | E154: 134.0 | F154: 3,530,000 | G154: 0 | H154: 473,020,000 | I154: =E154*F154 -> 473,161,200 | K154: 0
A155: 51 | B155: F-3⑤-2 | C155: F-3 5-2 | D155: 소계 | E155: 288.9 | F155: 2,398,000 | G155: =I155/E155*$H$2 -> 7,927,308 | H155: 693,022,000 | I155: =SUM(I156:I157) -> 692,782,200 | K155: =I155/M155 -> 106% | L155: 2,255,000 | M155: 651,695,000 | N155: 2,270,000 | O155: 656,030,000 | P155: 2,240,000 | Q155: 647,360,000
C156: F-3 5-2 | D156: 주거 부분 | E156: 173.3 | F156: 1,710,000 | G156: 0 | H156: 296,514,000 | I156: =E156*F156 -> 296,411,400 | K156: 0
C157: F-3 5-2 | D157: 비주거 부분 | E157: 115.6 | F157: 3,430,000 | G157: 0 | H157: 396,508,000 | I157: =E157*F157 -> 396,370,800 | K157: 0
A158: 52 | B158: F-3⑤-3 | C158: F-3 5-3 | D158: 소계 | E158: 289.0 | F158: 2,398,000 | G158: =I158/E158*$H$2 -> 7,927,308 | H158: 693,022,000 | I158: =SUM(I159:I160) -> 693,022,000 | K158: =I158/M158 -> 106% | L158: 2,255,000 | M158: 651,695,000 | N158: 2,270,000 | O158: 656,030,000 | P158: 2,240,000 | Q158: 647,360,000
C159: F-3 5-3 | D159: 주거 부분 | E159: 173.4 | F159: 1,710,000 | G159: 0 | H159: 296,514,000 | I159: =E159*F159 -> 296,514,000 | K159: 0
C160: F-3 5-3 | D160: 비주거 부분 | E160: 115.6 | F160: 3,430,000 | G160: 0 | H160: 396,508,000 | I160: =E160*F160 -> 396,508,000 | K160: 0
A161: 53 | B161: F-3⑤-4 | C161: F-3 5-4 | D161: 소계 | E161: 289.0 | F161: 2,398,000 | G161: =I161/E161*$H$2 -> 7,927,308 | H161: 693,022,000 | I161: =SUM(I162:I163) -> 693,022,000 | K161: =I161/M161 -> 106% | L161: 2,255,000 | M161: 651,695,000 | N161: 2,270,000 | O161: 656,030,000 | P161: 2,240,000 | Q161: 647,360,000
C162: F-3 5-4 | D162: 주거 부분 | E162: 173.4 | F162: 1,710,000 | G162: 0 | H162: 296,514,000 | I162: =E162*F162 -> 296,514,000 | K162: 0
C163: F-3 5-4 | D163: 비주거 부분 | E163: 115.6 | F163: 3,430,000 | G163: 0 | H163: 396,508,000 | I163: =E163*F163 -> 396,508,000 | K163: 0
A164: 54 | B164: F-3⑤-5 | C164: F-3 5-5 | D164: 소계 | E164: 289.0 | F164: 2,398,000 | G164: =I164/E164*$H$2 -> 7,927,308 | H164: 693,022,000 | I164: =SUM(I165:I166) -> 693,022,000 | K164: =I164/M164 -> 106% | L164: 2,255,000 | M164: 651,695,000 | N164: 2,270,000 | O164: 656,030,000 | P164: 2,240,000 | Q164: 647,360,000
C165: F-3 5-5 | D165: 주거 부분 | E165: 173.4 | F165: 1,710,000 | G165: 0 | H165: 296,514,000 | I165: =E165*F165 -> 296,514,000 | K165: 0
C166: F-3 5-5 | D166: 비주거 부분 | E166: 115.6 | F166: 3,430,000 | G166: 0 | H166: 396,508,000 | I166: =E166*F166 -> 396,508,000 | K166: 0
A167: 55 | B167: F-3⑤-6 | C167: F-3 5-6 | D167: 소계 | E167: 308.2 | F167: 2,446,000 | G167: =I167/E167*$H$2 -> 8,085,987 | H167: 753,368,000 | I167: =SUM(I168:I169) -> 753,857,200 | K167: =I167/M167 -> 105% | L167: 2,340,000 | M167: 720,720,000 | N167: 2,340,000 | O167: 720,720,000 | P167: 2,340,000 | Q167: 720,720,000
C168: F-3 5-6 | D168: 주거 부분 | E168: 184.9 | F168: 1,750,000 | G168: 0 | H168: 323,400,000 | I168: =E168*F168 -> 323,610,000 | K168: 0
C169: F-3 5-6 | D169: 비주거 부분 | E169: 123.3 | F169: 3,490,000 | G169: 0 | H169: 429,968,000 | I169: =E169*F169 -> 430,247,200 | K169: 0
A170: 56 | B170: F-3⑥-1 | C170: F-3 6-1 | D170: 소계 | E170: 311.8 | F170: 2,398,000 | G170: =I170/E170*$H$2 -> 7,927,308 | H170: 748,176,000 | I170: =SUM(I171:I172) -> 747,696,400 | K170: =I170/M170 -> 107% | L170: 2,245,000 | M170: 700,440,000 | N170: 2,150,000 | O170: 670,800,000 | P170: 2,340,000 | Q170: 730,080,000
C171: F-3 6-1 | D171: 주거 부분 | E171: 187.1 | F171: 1,710,000 | G171: 0 | H171: 320,112,000 | I171: =E171*F171 -> 319,906,800 | K171: 0
C172: F-3 6-1 | D172: 비주거 부분 | E172: 124.7 | F172: 3,430,000 | G172: 0 | H172: 428,064,000 | I172: =E172*F172 -> 427,789,600 | K172: 0
A173: 57 | B173: F-3⑥-2 | C173: F-3 6-2 | D173: 소계 | E173: 311.1 | F173: 2,398,000 | G173: =I173/E173*$H$2 -> 7,927,308 | H173: 745,778,000 | I173: =SUM(I174:I175) -> 746,017,800 | K173: =I173/M173 -> 108% | L173: 2,215,000 | M173: 688,865,000 | N173: 2,120,000 | O173: 659,320,000 | P173: 2,310,000 | Q173: 718,410,000
C174: F-3 6-2 | D174: 주거 부분 | E174: 186.7 | F174: 1,710,000 | G174: 0 | H174: 319,086,000 | I174: =E174*F174 -> 319,188,600 | K174: 0
C175: F-3 6-2 | D175: 비주거 부분 | E175: 124.4 | F175: 3,430,000 | G175: 0 | H175: 426,692,000 | I175: =E175*F175 -> 426,829,200 | K175: 0
A176: 58 | B176: F-3⑥-3 | C176: F-3 6-3 | D176: 소계 | E176: 309.0 | F176: 2,398,000 | G176: =I176/E176*$H$2 -> 7,927,308 | H176: 740,982,000 | I176: =SUM(I177:I178) -> 740,982,000 | K176: =I176/M176 -> 108% | L176: 2,215,000 | M176: 684,435,000 | N176: 2,120,000 | O176: 655,080,000 | P176: 2,310,000 | Q176: 713,790,000
C177: F-3 6-3 | D177: 주거 부분 | E177: 185.4 | F177: 1,710,000 | G177: 0 | H177: 317,034,000 | I177: =E177*F177 -> 317,034,000 | K177: 0
C178: F-3 6-3 | D178: 비주거 부분 | E178: 123.6 | F178: 3,430,000 | G178: 0 | H178: 423,948,000 | I178: =E178*F178 -> 423,948,000 | K178: 0
A179: 59 | B179: F-3⑥-4 | C179: F-3 6-4 | D179: 소계 | E179: 309.0 | F179: 2,446,000 | G179: =I179/E179*$H$2 -> 8,085,987 | H179: 755,814,000 | I179: =SUM(I180:I181) -> 755,814,000 | K179: =I179/M179 -> 109% | L179: 2,245,000 | M179: 693,705,000 | N179: 2,150,000 | O179: 664,350,000 | P179: 2,340,000 | Q179: 723,060,000
C180: F-3 6-4 | D180: 주거 부분 | E180: 185.4 | F180: 1,750,000 | G180: 0 | H180: 324,450,000 | I180: =E180*F180 -> 324,450,000 | K180: 0
C181: F-3 6-4 | D181: 비주거 부분 | E181: 123.6 | F181: 3,490,000 | G181: 0 | H181: 431,364,000 | I181: =E181*F181 -> 431,364,000 | K181: 0
A182: 60 | B182: F-3⑦-1 | C182: F-3 7-1 | D182: 소계 | E182: 284.0 | F182: 2,520,000 | G182: =I182/E182*$H$2 -> 8,330,616 | H182: 715,680,000 | I182: =SUM(I183:I184) -> 715,680,000 | K182: =I182/M182 -> 109% | L182: 2,310,000 | M182: 656,040,000 | N182: 2,210,000 | O182: 627,640,000 | P182: 2,410,000 | Q182: 684,440,000
C183: F-3 7-1 | D183: 주거 부분 | E183: 170.4 | F183: 1,800,000 | G183: 0 | H183: 306,720,000 | I183: =E183*F183 -> 306,720,000 | K183: 0
C184: F-3 7-1 | D184: 비주거 부분 | E184: 113.6 | F184: 3,600,000 | G184: 0 | H184: 408,960,000 | I184: =E184*F184 -> 408,960,000 | K184: 0
A185: 61 | B185: F-3⑦-2 | C185: F-3 7-2 | D185: 소계 | E185: 287.9 | F185: 2,398,000 | G185: =I185/E185*$H$2 -> 7,927,308 | H185: 690,624,000 | I185: =SUM(I186:I187) -> 690,384,200 | K185: =I185/M185 -> 108% | L185: 2,215,000 | M185: 637,920,000 | N185: 2,120,000 | O185: 610,560,000 | P185: 2,310,000 | Q185: 665,280,000
C186: F-3 7-2 | D186: 주거 부분 | E186: 172.7 | F186: 1,710,000 | G186: 0 | H186: 295,488,000 | I186: =E186*F186 -> 295,385,400 | K186: 0
C187: F-3 7-2 | D187: 비주거 부분 | E187: 115.2 | F187: 3,430,000 | G187: 0 | H187: 395,136,000 | I187: =E187*F187 -> 394,998,800 | K187: 0
A188: 62 | B188: F-3⑦-3 | C188: F-3 7-3 | D188: 소계 | E188: 287.8 | F188: 2,398,000 | G188: =I188/E188*$H$2 -> 7,927,308 | H188: 690,624,000 | I188: =SUM(I189:I190) -> 690,144,400 | K188: =I188/M188 -> 108% | L188: 2,215,000 | M188: 637,920,000 | N188: 2,120,000 | O188: 610,560,000 | P188: 2,310,000 | Q188: 665,280,000
C189: F-3 7-3 | D189: 주거 부분 | E189: 172.7 | F189: 1,710,000 | G189: 0 | H189: 295,488,000 | I189: =E189*F189 -> 295,282,800 | K189: 0
C190: F-3 7-3 | D190: 비주거 부분 | E190: 115.1 | F190: 3,430,000 | G190: 0 | H190: 395,136,000 | I190: =E190*F190 -> 394,861,600 | K190: 0
A191: 63 | B191: F-3⑦-4 | C191: F-3 7-4 | D191: 소계 | E191: 283.0 | F191: 2,398,000 | G191: =I191/E191*$H$2 -> 7,927,308 | H191: 678,634,000 | I191: =SUM(I192:I193) -> 678,634,000 | K191: =I191/M191 -> 107% | L191: 2,245,000 | M191: 635,335,000 | N191: 2,150,000 | O191: 608,450,000 | P191: 2,340,000 | Q191: 662,220,000
C192: F-3 7-4 | D192: 주거 부분 | E192: 169.8 | F192: 1,710,000 | G192: 0 | H192: 290,358,000 | I192: =E192*F192 -> 290,358,000 | K192: 0
C193: F-3 7-4 | D193: 비주거 부분 | E193: 113.2 | F193: 3,430,000 | G193: 0 | H193: 388,276,000 | I193: =E193*F193 -> 388,276,000 | K193: 0
A194: 합 계 | H194: 40,475,610,000 | L194: 0 | M194: 36,870,120,000 | O194: 36,788,910,000 | Q194: 36,951,330,000
H196: 1,748,222,000 | I196: =SUBTOTAL(9,I5:I191) -> 40,480,700,200
H198: 38,727,388,000
H200: 1,857,268,000
H202: 5%
